bitfinex-derivatives/quotes_ETHF0:USTF0_20251225
["timestamp","ask_amount","ask_price","bid_price","bid_amount"]
[1766686840266,9.542,2955.2,2953.8,3.386]
[1766686840467,0.99445028,2955.1,2953.8,3.386]
[1766686840672,9.542,2955.2,2953.8,3.386]
[1766686840871,0.99445028,2955.1,2953.8,3.386]
[1766686841071,9.542,2955.2,2953.8,3.386]
[1766686841273,0.99444825,2955.1,2953.8,3.386]
[1766686841472,9.542,2955.2,2953.8,3.386]
[1766686841776,0.99444825,2955.1,2953.8,3.386]
[1766686841973,9.542,2955.2,2953.8,3.386]
[1766686842174,0.99444825,2955.1,2953.8,3.386]
[1766686842374,9.542,2955.2,2953.8,3.386]
[1766686842576,0.99443526,2955.1,2953.8,3.386]
[1766686842876,9.71131,2955.2,2953.8,3.386]
[1766686843080,0.99443636,2955.1,2953.8,3.386]
[1766686843278,9.71131,2955.2,2953.8,3.386]
[1766686843477,0.99441721,2955.1,2953.8,3.386]
[1766686843680,9.71131,2955.2,2953.8,3.386]
[1766686843979,0.99441721,2955.1,2953.8,3.386]
[1766686844276,9.71131,2955.2,2953.8,3.386]
[1766686844478,0.99440174,2955.1,2953.8,3.386]
[1766686844677,9.71131,2955.2,2953.8,3.386]
[1766686844881,0.99440174,2955.1,2953.8,3.386]
[1766686845079,9.71131,2955.2,2953.8,3.386]
[1766686845379,0.99439173,2955.1,2953.8,3.386]
[1766686845580,9.71131,2955.2,2953.8,3.386]
[1766686845773,0.99439173,2955.1,2953.8,3.386]
[1766686845968,9.71131,2955.2,2953.8,3.386]
[1766686846173,0.99439173,2955.1,2953.8,3.386]
[1766686846373,9.71131,2955.2,2953.8,3.386]
[1766686846574,0.99438433,2955.1,2953.8,3.386]
[1766686846874,9.71131,2955.2,2953.8,3.386]
[1766686847174,0.99438433,2955.1,2953.8,3.386]
[1766686847374,6.196,2955.0,2953.8,3.386]
[1766686847674,3.386,2954.9,2953.8,3.386]
[1766686860885,3.386,2954.8,2954.0,0.84075335]
[1766686861283,0.16931,2955.2,2954.0,0.84075335]
[1766686861590,4.52,2955.1,2954.0,0.84075335]
[1766686862480,3.386,2955.0,2954.3,0.84075335]
[1766686869990,3.386,2955.0,2954.2,3.386]
[1766686873194,3.386,2954.9,2954.2,3.386]
[1766686895208,3.386,2954.9,2953.9,9.042]
[1766686900205,3.386,2954.9,2953.6,4.466394]
[1766686901412,5.909,2954.8,2953.6,4.466394]
[1766686901614,3.386,2954.7,2953.6,4.466394]
[1766686903715,3.386,2954.6,2953.6,4.466394]
[1766686906713,0.00507451,2955.3,2954.2,0.84057504]
[1766686907012,0.00507451,2955.3,2954.3,9.391]
[1766686909028,0.99320809,2955.2,2951.7,3.1985]
[1766686909315,3.389,2953.5,2951.8,0.01431048]
[1766686909518,0.00507451,2953.7,2951.9,8.465]
[1766686909713,0.00507451,2953.7,2952.3,0.84057504]
[1766686909916,0.00507451,2953.7,2952.4,3.386]
[1766686910220,0.00794905,2953.7,2952.5,9.39]
[1766686910410,0.00794905,2953.7,2952.5,12.94064847]
[1766686911809,4.905e-05,2953.7,2952.8,0.00507451]
[1766686912013,4.905e-05,2953.7,2952.9,3.386]
[1766686912213,4.905e-05,2953.7,2953.0,6.004]
[1766686912810,8.466,2955.5,2953.1,3.55064847]
[1766686913016,3.751,2955.1,2953.1,3.55064847]
[1766686913217,35.07891525,2956.1,2953.1,3.55064847]
[1766686913218,8.466,2956.1,2953.1,3.55064847]
[1766686913519,3.6863,2955.2,2953.2,3.75613428]
[1766686913818,0.30463747,2955.2,2953.4,0.16941]
[1766686914117,0.30463747,2955.2,2953.5,6.004]
[1766686914310,0.30463747,2955.2,2953.5,6.1734]
[1766686914721,0.00507451,2954.6,2953.5,6.1734]
[1766686918917,0.00507451,2954.6,2953.6,3.55064847]
[1766686919216,0.00507451,2954.6,2953.7,11.851]
[1766686922118,0.00507451,2954.6,2953.8,3.55064847]
[1766686922626,0.00507451,2954.6,2953.9,9.394]
[1766686927234,0.00507451,2954.6,2954.0,3.55064847]
[1766686928735,3.386,2954.8,2954.0,3.55064847]
[1766686929726,0.00507451,2954.7,2954.1,0.00507451]
[1766686931433,3.386,2955.1,2954.2,3.55064847]
[1766686932335,0.00507451,2954.9,2954.2,3.55064847]
[1766686933329,0.3384,2954.8,2954.2,3.55064847]
[1766686933739,0.3384,2954.8,2954.3,3.386]
[1766686936534,0.3384,2954.8,2954.4,3.55064847]
[1766686940140,0.21759701,2954.8,2954.3,3.386]
[1766686940342,0.21759701,2954.8,2954.4,3.55064847]
[1766686942537,0.21759701,2954.8,2954.3,9.394]
[1766686942741,0.21759701,2954.8,2954.4,3.55064847]
[1766686943539,0.21759701,2954.8,2954.3,9.394]
[1766686943736,0.21759701,2954.8,2954.4,3.55064847]
[1766686952851,0.21759701,2954.8,2954.1,1.99111928]
[1766686953150,4.41671849,2954.7,2954.1,1.83171928]
[1766686953345,3.386,2954.7,2954.1,0.77863863]
[1766686953842,3.386,2954.7,2954.1,0.66411314]
[1766686954049,0.84057503,2954.6,2953.6,4.188]
[1766686955151,0.84057503,2954.6,2953.8,0.00507451]
[1766686957647,1.00991503,2954.6,2953.0,6.013]
[1766686957854,3.386,2954.5,2953.1,3.386]
[1766686958547,0.2181,2954.4,2953.1,3.386]
[1766686958744,0.2181,2954.4,2953.5,0.00507451]
[1766686962257,3.386,2954.3,2953.5,0.00507451]
[1766686965556,3.386,2954.3,2952.7,0.16945]
[1766686965557,0.84057503,2954.2,2952.8,3.386]
[1766686965860,0.84057503,2953.9,2952.7,3.386]
[1766686966050,3.386,2953.8,2952.7,3.386]
[1766686966651,3.386,2953.8,2953.0,0.00507451]
[1766686967755,0.84057503,2953.6,2952.4,0.00314686]
[1766686968060,0.84057503,2953.6,2952.4,3.38914686]
[1766686968758,0.00507451,2953.3,2952.4,3.38914686]
[1766686975377,4.22757503,2953.2,2952.4,0.00314686]
[1766686977678,0.3386,2953.1,2952.4,0.00314686]
[1766686977872,0.34097894,2953.1,2952.4,0.00314686]
[1766686981467,3.387,2953.0,2952.4,0.00314686]
[1766686983576,0.00507451,2953.3,2952.5,4.22857503]
[1766686983782,0.93557503,2954.2,2952.5,4.22857503]
[1766686983993,3.388,2953.9,2952.5,4.22857503]
[1766686984476,4.22857503,2953.9,2952.5,4.22857503]
[1766686984679,0.00507451,2953.5,2952.9,0.00507451]
[1766686984983,0.00507451,2953.5,2952.9,3.39307451]
[1766686985482,0.00507451,2953.5,2952.9,0.00507451]
[1766686987284,0.22327451,2953.5,2952.8,3.387]
[1766686993389,0.22327451,2953.5,2952.4,3.39014686]
[1766686993390,0.16942,2953.2,2952.4,3.39014686]
[1766686993595,0.16943,2953.0,2952.1,3.387]
[1766686994488,0.16943,2953.0,2952.1,3.39137516]
[1766686995796,3.388,2953.4,2952.1,3.39137516]
[1766687001794,3.55741,2953.4,2952.1,3.39137516]
[1766687004998,0.16941,2953.4,2952.1,3.39137516]
[1766687005194,0.16941,2953.4,2952.2,9.124]
[1766687006900,0.16941,2953.4,2952.1,0.00437516]
[1766687007196,0.16941,2953.4,2952.2,3.388]
[1766687018803,0.2183,2953.3,2952.2,3.388]
[1766687019900,0.0589,2953.3,2952.2,3.388]
[1766687020104,3.388,2953.7,2952.2,3.388]
[1766687021112,3.388,2953.7,2952.7,0.00507451]
[1766687021301,3.388,2953.7,2952.8,3.388]
[1766687022106,0.00507451,2953.5,2952.8,3.388]
[1766687023509,3.388,2953.7,2952.8,3.388]
[1766687024510,0.00507451,2953.5,2952.8,3.388]
[1766687026709,0.00507451,2953.5,2952.9,3.388]
[1766687038622,0.00507451,2953.5,2952.7,0.00507451]
[1766687038820,0.00507451,2953.5,2952.8,3.387]
[1766687045415,0.00507451,2953.5,2952.7,0.00507451]
[1766687045613,0.00507451,2953.5,2952.9,3.387]
[1766687068038,0.00507451,2953.5,2952.7,0.00507451]
[1766687068336,0.00507451,2953.5,2952.8,4.22]
[1766687069332,0.00507451,2953.5,2952.7,0.00507451]
[1766687069536,0.00507451,2953.5,2952.8,3.387]
[1766687070440,0.8417197,2953.1,2952.7,0.00507451]
[1766687070638,0.8417197,2953.1,2952.5,3.387]
[1766687071533,0.8417197,2953.1,2952.5,3.39207451]
[1766687071741,0.8417197,2953.4,2952.5,3.39207451]
[1766687071938,1.03055428,2953.3,2952.5,3.39207451]
[1766687072128,0.8417197,2953.4,2952.5,3.39207451]
[1766687074643,0.00507451,2953.5,2952.5,3.39207451]
[1766687074834,1.03002428,2953.4,2952.5,3.39207451]
[1766687075040,0.00507451,2953.5,2952.5,3.39207451]
[1766687075246,1.03002417,2953.4,2952.5,3.39207451]
[1766687075442,0.00507451,2953.5,2952.5,3.39207451]
[1766687075644,1.0299238,2953.4,2952.5,3.39207451]
[1766687075843,0.00507451,2953.5,2952.5,3.39207451]
[1766687076043,1.02992419,2953.4,2952.5,3.39207451]
[1766687076343,0.00507451,2953.5,2952.5,3.39207451]
[1766687076544,1.0298375,2953.4,2952.5,3.39207451]
[1766687076740,0.00507451,2953.5,2952.5,3.39207451]
[1766687076945,1.0298371,2953.4,2952.5,3.39207451]
[1766687077143,0.00507451,2953.5,2952.5,3.39207451]
[1766687077345,1.02976472,2953.4,2952.5,3.39207451]
[1766687077644,0.00507451,2953.5,2952.5,3.39207451]
[1766687077844,1.02976433,2953.4,2952.5,3.39207451]
[1766687078046,0.00507451,2953.5,2952.5,3.39207451]
[1766687078248,1.02970405,2953.4,2952.5,3.39207451]
[1766687078546,0.00507451,2953.5,2952.5,3.39207451]
[1766687078846,1.02970496,2953.4,2952.5,3.39207451]
[1766687079045,0.00507451,2953.5,2952.5,3.39207451]
[1766687079247,1.02965666,2953.4,2952.5,3.39207451]
[1766687079446,0.00507451,2953.5,2952.5,3.39207451]
[1766687079745,1.02965666,2953.4,2952.5,3.39207451]
[1766687080044,0.00507451,2953.5,2952.5,3.39207451]
[1766687080244,1.0296184,2953.4,2952.5,3.39207451]
[1766687080544,0.00507451,2953.5,2952.5,3.39207451]
[1766687080743,1.0296184,2953.4,2952.5,3.39207451]
[1766687080943,0.00507451,2953.5,2952.5,3.39207451]
[1766687081142,1.02961879,2953.4,2952.5,3.39207451]
[1766687081340,0.00507451,2953.5,2952.5,3.39207451]
[1766687081646,1.02958794,2953.4,2952.5,3.39207451]
[1766687081947,0.00507451,2953.5,2952.5,3.39207451]
[1766687082139,1.02958794,2953.4,2952.5,3.39207451]
[1766687082340,0.84679421,2953.5,2952.5,3.39207451]
[1766687082548,1.02956494,2953.4,2952.5,3.39207451]
[1766687082734,0.84679421,2953.5,2952.5,3.39207451]
[1766687082940,1.02956458,2953.4,2952.5,3.39207451]
[1766687083140,0.84679421,2953.5,2952.5,3.39207451]
[1766687083341,1.02955056,2953.4,2952.5,3.39207451]
[1766687083649,0.84679421,2953.5,2952.5,3.39207451]
[1766687083848,1.02955056,2953.4,2952.5,3.39207451]
[1766687084147,0.84679421,2953.5,2952.5,3.39207451]
[1766687084339,1.02954369,2953.4,2952.5,3.39207451]
[1766687084539,0.84679421,2953.5,2952.5,3.39207451]
[1766687084736,1.02954379,2953.4,2952.5,3.39207451]
[1766687084940,0.84679421,2953.5,2952.5,3.39207451]
[1766687085236,1.02954369,2953.4,2952.5,3.39207451]
[1766687085441,0.84679421,2953.5,2952.5,3.39207451]
[1766687085741,1.02954359,2953.4,2952.5,3.39207451]
[1766687085936,0.84679421,2953.5,2952.5,3.39207451]
[1766687086145,1.02954341,2953.4,2952.5,3.39207451]
[1766687086351,0.84679421,2953.5,2952.5,3.39207451]
[1766687086553,1.02955048,2953.4,2952.5,3.39207451]
[1766687086845,0.84679421,2953.5,2952.5,3.39207451]
[1766687087049,1.02955048,2953.4,2952.5,3.39207451]
[1766687087241,0.84679421,2953.5,2952.5,3.39207451]
[1766687087442,1.02956524,2953.4,2952.5,3.39207451]
[1766687087641,0.84679421,2953.5,2952.5,3.39207451]
[1766687087837,1.02956524,2953.4,2952.5,3.39207451]
[1766687088048,0.84679421,2953.5,2952.5,3.39207451]
[1766687088244,1.02958737,2953.4,2952.5,3.39207451]
[1766687088444,0.84679421,2953.5,2952.5,3.39207451]
[1766687088741,1.02958777,2953.4,2952.5,3.39207451]
[1766687088944,0.84679421,2953.5,2952.5,3.39207451]
[1766687089145,1.02958786,2953.4,2952.5,3.39207451]
[1766687089345,0.84679421,2953.5,2952.5,3.39207451]
[1766687089538,1.02961666,2953.4,2952.5,3.39207451]
[1766687089749,0.84679421,2953.5,2952.5,3.39207451]
[1766687089950,1.02961627,2953.4,2952.5,3.39207451]
[1766687090156,0.84679421,2953.5,2952.5,3.39207451]
[1766687090354,1.02965408,2953.4,2952.5,3.39207451]
[1766687090652,0.00507451,2953.5,2952.5,3.39207451]
[1766687090854,1.02965356,2953.4,2952.5,3.39207451]
[1766687091057,0.00507451,2953.5,2952.5,3.39207451]
[1766687091253,1.02970095,2953.4,2952.5,3.39207451]
[1766687091452,0.00507451,2953.5,2952.5,3.39207451]
[1766687091645,1.02970095,2953.4,2952.5,3.39207451]
[1766687091842,0.00507451,2953.5,2952.5,3.39207451]
[1766687092057,1.02970095,2953.4,2952.5,3.39207451]
[1766687092354,0.00507451,2953.5,2952.5,3.39207451]
[1766687092542,1.02975909,2953.4,2952.5,3.39207451]
[1766687092746,0.8417197,2953.3,2952.5,3.39207451]
[1766687102362,0.8417197,2953.3,2952.5,0.00507451]
[1766687102565,0.8417197,2953.3,2952.5,6.98207451]
[1766687103361,0.8417197,2953.3,2952.5,0.00507451]
[1766687103559,0.8417197,2953.0,2952.5,0.00507451]
[1766687103762,0.8417197,2953.0,2952.4,3.388]
[1766687104863,0.8417197,2953.0,2952.4,3.39307451]
[1766687105258,0.8417197,2953.0,2952.1,9.39737516]
[1766687105462,1.02998638,2952.9,2952.1,9.39737516]
[1766687105661,0.8417197,2953.0,2952.1,9.39737516]
[1766687105965,1.02998625,2952.9,2952.1,9.39737516]
[1766687106266,0.8417197,2953.0,2952.1,9.39737516]
[1766687109561,3.55742,2953.2,2952.1,9.39737516]
[1766687109766,1.02859148,2953.1,2952.1,9.39737516]
[1766687109967,4.3991397,2953.2,2952.1,9.39737516]
[1766687110261,1.02859024,2953.1,2952.1,9.39737516]
[1766687110463,4.3991397,2953.2,2952.1,9.39737516]
[1766687110669,1.02846093,2953.1,2952.1,9.39737516]
[1766687110861,4.3991397,2953.2,2952.1,9.39737516]
[1766687111062,1.02846067,2953.1,2952.1,9.39737516]
[1766687111263,4.3991397,2953.2,2952.1,9.39737516]
[1766687111467,1.02835087,2953.1,2952.1,9.39737516]
[1766687111769,4.3991397,2953.2,2952.1,9.39737516]
[1766687112064,1.0283509,2953.1,2952.1,9.39737516]
[1766687112265,4.3991397,2953.2,2952.1,9.39737516]
[1766687112469,1.02825974,2953.1,2952.1,9.39737516]
[1766687112667,4.3991397,2953.2,2952.1,9.39737516]
[1766687112864,1.02825974,2953.1,2952.1,9.39737516]
[1766687113060,4.3991397,2953.2,2952.1,9.39737516]
[1766687113261,1.02818482,2953.1,2952.1,9.39737516]
[1766687113462,4.3991397,2953.2,2952.1,9.39737516]
[1766687113662,1.02818472,2953.1,2952.1,9.39737516]
[1766687113863,4.3991397,2953.2,2952.1,9.39737516]
[1766687114066,1.02818472,2953.1,2952.1,9.39737516]
[1766687114362,3.55742,2953.2,2952.1,9.39737516]
[1766687114560,1.02812328,2953.1,2952.1,9.39737516]
[1766687114756,3.388,2953.1,2952.1,9.39737516]
[1766687126276,1.02960352,2953.0,2952.1,9.39737516]
[1766687126470,3.388,2953.1,2952.1,9.39737516]
[1766687126673,1.02960352,2953.0,2952.1,9.39737516]
[1766687126873,3.388,2953.1,2952.1,9.39737516]
[1766687127174,1.02960352,2953.0,2952.1,9.39737516]
[1766687127375,3.388,2953.1,2952.1,9.39737516]
[1766687127576,1.02968803,2953.0,2952.1,9.39737516]
[1766687127774,3.388,2953.1,2952.1,9.39737516]
[1766687127975,1.02968805,2953.0,2952.1,9.39737516]
[1766687128176,3.388,2953.1,2952.1,9.39737516]
[1766687128376,1.02978981,2953.0,2952.1,9.39737516]
[1766687128576,3.388,2953.1,2952.1,9.39737516]
[1766687128778,1.02978981,2953.0,2952.1,9.39737516]
[1766687128968,3.388,2953.1,2952.1,9.39737516]
[1766687129171,1.02978981,2953.0,2952.1,9.39737516]
[1766687129480,3.388,2953.1,2952.1,9.39737516]
[1766687129679,1.02991223,2953.0,2952.1,0.00437516]
[1766687129880,3.388,2953.1,2952.1,9.39637516]
[1766687130078,1.02993674,2953.0,2952.1,9.39637516]
[1766687130379,3.388,2953.1,2952.1,9.39637516]
[1766687130679,1.0299491,2953.0,2952.1,9.39637516]
[1766687130879,3.388,2953.1,2952.1,9.39637516]
[1766687131077,1.0299491,2953.0,2952.1,9.39637516]
[1766687131382,3.388,2953.1,2952.1,9.39637516]
[1766687131681,1.03008658,2953.0,2952.1,9.39637516]
[1766687131881,3.388,2953.1,2952.1,9.39637516]
[1766687132083,1.03008686,2953.0,2952.1,9.39637516]
[1766687132275,1.03008686,2952.9,2952.1,9.39637516]
[1766687132476,3.388,2953.1,2952.1,9.39637516]
[1766687132781,1.03025998,2953.0,2952.1,9.39637516]
[1766687132982,1.03025998,2952.9,2952.1,9.39637516]
[1766687133282,3.388,2953.1,2952.1,9.39637516]
[1766687133582,1.03047577,2953.0,2952.1,9.39637516]
[1766687133786,1.03047577,2952.9,2952.1,9.39637516]
[1766687133984,3.388,2953.1,2952.1,9.39637516]
[1766687134283,1.03047577,2953.0,2952.1,9.39637516]
[1766687134477,1.03047577,2952.9,2952.1,9.39637516]
[1766687134673,0.2203,2952.9,2952.1,9.39637516]
[1766687136187,3.388,2952.8,2952.1,9.39637516]
[1766687141484,0.16942,2953.2,2952.1,9.39637516]
[1766687141689,4.41918401,2953.1,2952.1,9.39637516]
[1766687141889,0.61278401,2953.0,2952.1,9.39637516]
[1766687142088,3.388,2953.1,2952.1,9.39637516]
[1766687154000,1.02940562,2953.0,2952.1,9.39637516]
[1766687154297,1.02940562,2952.9,2952.1,9.39637516]
[1766687154498,3.388,2953.1,2952.1,9.39637516]
[1766687154699,1.02940818,2953.0,2952.1,9.39637516]
[1766687154899,1.02940818,2952.9,2952.1,9.39637516]
[1766687155101,3.388,2953.1,2952.1,9.39637516]
[1766687155301,1.02941081,2953.0,2952.1,9.39637516]
[1766687155501,1.02941081,2952.9,2952.1,9.39637516]
[1766687155703,3.388,2953.1,2952.1,9.39637516]
[1766687155903,1.02941081,2953.0,2952.1,9.39637516]
[1766687156104,1.02941081,2952.9,2952.1,9.39637516]
[1766687156299,3.388,2953.1,2952.1,9.39637516]
[1766687156498,1.02891436,2953.0,2952.1,9.39637516]
[1766687156793,1.02891436,2952.9,2952.1,9.39637516]
[1766687156998,3.388,2953.1,2952.1,9.39637516]
[1766687157300,1.02891436,2953.0,2952.1,9.39637516]
[1766687157598,1.02891436,2952.9,2952.2,3.388]
[1766687157796,3.388,2953.1,2952.2,3.388]
[1766687158003,1.02891713,2953.0,2952.2,3.388]
[1766687158194,1.02891713,2952.9,2952.2,3.388]
[1766687158394,3.388,2953.1,2952.2,3.388]
[1766687158603,0.92921715,2953.0,2952.2,3.388]
[1766687158791,3.388,2953.1,2952.2,3.388]
[1766687167704,3.388,2953.1,2952.1,9.39337516]
[1766687168009,3.388,2953.1,2952.1,0.00437516]
[1766687170905,1.02714039,2953.0,2952.1,0.00437516]
[1766687171102,1.02714039,2952.9,2952.1,0.00437516]
[1766687171302,3.388,2953.1,2952.1,0.00437516]
[1766687171503,1.02713015,2953.0,2952.1,0.00437516]
[1766687171699,1.02713015,2952.9,2952.1,0.00437516]
[1766687171907,3.388,2953.1,2952.1,0.00437516]
[1766687172113,1.02713015,2953.0,2952.1,0.00437516]
[1766687172315,1.02713015,2952.9,2952.1,0.00437516]
[1766687172615,3.388,2953.1,2952.1,0.00437516]
[1766687172806,1.02711424,2953.0,2952.1,0.00437516]
[1766687173006,1.02711424,2952.9,2952.1,0.00437516]
[1766687173310,3.388,2953.1,2952.1,0.00437516]
[1766687173610,1.02709985,2953.0,2952.1,0.00437516]
[1766687173814,1.02709985,2952.9,2952.1,0.00437516]
[1766687174009,0.84215317,2952.9,2952.1,0.00437516]
[1766687175916,0.16942,2953.3,2952.1,0.00437516]
[1766687176102,3.55733,2954.8,2952.2,12.12288369]
[1766687176303,1.86884789,2954.7,2953.1,0.84215317]
[1766687176506,0.84215317,2954.4,2953.2,9.389]
[1766687176807,4.23015317,2954.4,2953.2,9.389]
[1766687177008,0.00507451,2954.1,2953.5,0.00507451]
[1766687177208,3.388,2954.4,2953.5,0.00507451]
[1766687178208,0.00507451,2954.2,2953.5,0.00507451]
[1766687179212,0.00507451,2954.2,2953.6,3.388]
[1766687197335,3.39063886,2954.4,2953.6,3.388]
[1766687198233,0.00507451,2954.3,2953.6,3.388]
[1766687220750,0.00263886,2954.4,2953.6,3.388]
[1766687221647,0.00507451,2954.3,2953.6,3.388]
[1766687222045,9.30915317,2955.3,2953.7,0.84215317]
[1766687222256,6.139,2954.9,2953.7,0.84215317]
[1766687222457,1.01780201,2954.8,2953.7,0.84215317]
[1766687222759,6.139,2954.9,2953.7,0.84215317]
[1766687222949,1.01745152,2954.8,2953.7,0.84215317]
[1766687223268,6.14330149,2954.9,2953.7,0.84215317]
[1766687223559,1.01719041,2954.8,2953.7,0.84215317]
[1766687223759,6.14330149,2954.9,2953.7,0.84215317]
[1766687224058,0.00338302,2954.6,2953.7,0.84215317]
[1766687224860,0.00338302,2954.6,2953.6,3.388]
[1766687225159,0.00338302,2954.6,2953.6,4.23015317]
[1766687226050,6.14330149,2954.9,2953.6,4.23015317]
[1766687227661,6.14330149,2954.9,2953.9,0.84215317]
[1766687227854,6.14330149,2954.9,2954.0,3.386]
[1766687228961,6.14330149,2954.9,2953.9,0.84215317]
[1766687229260,6.14330149,2954.9,2954.0,3.386]
[1766687232364,1.0164844,2954.8,2954.0,3.386]
[1766687232565,6.14330149,2954.9,2954.0,3.386]
[1766687232766,1.01648332,2954.8,2954.0,3.386]
[1766687232963,6.14330149,2954.9,2954.0,3.386]
[1766687233264,1.0164785,2954.8,2954.0,3.386]
[1766687233467,6.14330149,2954.9,2954.0,3.386]
[1766687233665,1.01646079,2954.8,2954.0,3.386]
[1766687233967,6.14330149,2954.9,2954.0,3.386]
[1766687234160,1.01646036,2954.8,2954.0,3.386]
[1766687234353,6.14330149,2954.9,2954.0,3.386]
[1766687234557,1.01644564,2954.8,2954.0,3.386]
[1766687234766,6.14330149,2954.9,2954.0,3.386]
[1766687234953,1.01644564,2954.8,2954.0,3.386]
[1766687235158,6.14330149,2954.9,2954.0,3.386]
[1766687235668,1.01642783,2954.8,2954.0,3.386]
[1766687235868,6.14330149,2954.9,2954.0,3.386]
[1766687236169,1.01642861,2954.8,2954.0,3.386]
[1766687236368,6.14330149,2954.9,2954.0,3.386]
[1766687236570,1.01642677,2954.8,2954.0,3.386]
[1766687236756,6.14330149,2954.9,2954.0,3.386]
[1766687239271,1.01644988,2954.8,2954.0,3.386]
[1766687239474,6.14330149,2954.9,2954.0,3.386]
[1766687239767,1.01644988,2954.8,2954.0,3.386]
[1766687239981,6.14330149,2954.9,2954.0,3.386]
[1766687240165,1.01644988,2954.8,2954.0,3.386]
[1766687240471,6.14330149,2954.9,2954.0,3.386]
[1766687240671,1.0164771,2954.8,2954.0,3.386]
[1766687240873,6.14330149,2954.9,2954.0,3.386]
[1766687241074,1.0164771,2954.8,2954.0,3.386]
[1766687241274,6.14330149,2954.9,2954.0,3.386]
[1766687241468,1.01651585,2954.8,2954.0,3.386]
[1766687241772,6.14330149,2954.9,2954.0,3.386]
[1766687241970,1.01651611,2954.8,2954.0,3.386]
[1766687242169,6.14330149,2954.9,2954.0,3.386]
[1766687242370,1.0165609,2954.8,2954.0,3.386]
[1766687242563,6.14330149,2954.9,2954.0,3.386]
[1766687242764,1.0165609,2954.8,2954.0,3.386]
[1766687242964,6.14330149,2954.9,2954.0,3.386]
[1766687243162,1.01656129,2954.8,2954.0,3.386]
[1766687243368,6.14330149,2954.9,2954.0,3.386]
[1766687243569,1.01661549,2954.8,2954.0,3.386]
[1766687243770,6.14330149,2954.9,2954.0,3.386]
[1766687243968,1.01661548,2954.8,2954.0,3.386]
[1766687244175,6.14330149,2954.9,2954.0,3.386]
[1766687244370,1.01668136,2954.8,2954.0,3.386]
[1766687244570,6.14330149,2954.9,2954.0,3.386]
[1766687244775,1.01668136,2954.8,2954.0,3.386]
[1766687245069,6.14330149,2954.9,2954.0,3.386]
[1766687245264,1.01668136,2954.8,2954.0,3.386]
[1766687245469,6.14330149,2954.9,2954.0,3.386]
[1766687245678,1.01676026,2954.8,2954.0,3.386]
[1766687245868,6.14330149,2954.9,2954.0,3.386]
[1766687246068,1.01676026,2954.8,2954.0,3.386]
[1766687246279,6.14330149,2954.9,2954.0,3.386]
[1766687246573,1.017686,2954.8,2954.0,3.386]
[1766687246773,6.14330149,2954.9,2954.0,3.386]
[1766687246978,1.017686,2954.8,2954.0,3.386]
[1766687247173,6.14330149,2954.9,2954.0,3.386]
[1766687247374,1.01779898,2954.8,2954.0,3.386]
[1766687247574,6.14330149,2954.9,2954.0,3.386]
[1766687247773,1.01779898,2954.8,2954.0,3.386]
[1766687248079,6.14330149,2954.9,2954.0,3.386]
[1766687248269,1.01779937,2954.8,2954.0,3.386]
[1766687248470,6.14330149,2954.9,2954.0,3.386]
[1766687248669,1.01794903,2954.8,2954.0,3.386]
[1766687248869,6.14330149,2954.9,2954.0,3.386]
[1766687249077,1.01794903,2954.8,2954.0,3.386]
[1766687249284,6.14330149,2954.9,2954.0,3.386]
[1766687249578,1.01815504,2954.8,2954.0,3.386]
[1766687249775,6.14330149,2954.9,2954.0,3.386]
[1766687249977,1.01815543,2954.8,2954.0,3.386]
[1766687250178,6.14330149,2954.9,2954.0,3.386]
[1766687250373,1.01816458,2954.8,2954.0,3.386]
[1766687250580,6.14330149,2954.9,2954.0,3.386]
[1766687250776,1.01816445,2954.8,2954.0,3.386]
[1766687250980,6.14330149,2954.9,2954.0,3.386]
[1766687250981,1.01816445,2954.7,2954.0,3.386]
[1766687251173,6.14330149,2954.9,2954.0,3.386]
[1766687251373,1.01856619,2954.8,2954.0,3.386]
[1766687251574,4.40456619,2954.7,2954.0,3.386]
[1766687251878,3.386,2954.7,2954.0,3.386]
[1766687252980,3.386,2954.7,2953.8,3.386]
[1766687254584,3.386,2954.7,2953.5,0.00507451]
[1766687254585,1.18784553,2954.6,2953.5,3.39107451]
[1766687254782,1.01850553,2954.5,2953.5,3.39107451]
[1766687258290,0.16934,2954.6,2953.5,3.39107451]
[1766687274402,1.01744081,2954.5,2953.5,3.39107451]
[1766687274602,0.16934,2954.6,2953.5,3.39107451]
[1766687274802,1.0174415,2954.5,2953.5,3.39107451]
[1766687274995,0.16934,2954.6,2953.5,3.39107451]
[1766687275196,1.0174415,2954.5,2953.5,3.39107451]
[1766687275396,0.16934,2954.6,2953.5,3.39107451]
[1766687275596,1.01749186,2954.5,2953.5,3.39107451]
[1766687275806,0.16934,2954.6,2953.5,3.39107451]
[1766687276103,1.01749117,2954.5,2953.5,3.39107451]
[1766687276305,0.16934,2954.6,2953.5,3.39107451]
[1766687276506,1.01663197,2954.5,2953.5,3.39107451]
[1766687276707,0.16934,2954.6,2953.5,3.39107451]
[1766687276912,1.01663197,2954.5,2953.5,3.39107451]
[1766687277102,0.16934,2954.6,2953.5,3.39107451]
[1766687277303,1.01663266,2954.5,2953.5,3.39107451]
[1766687277597,0.16934,2954.6,2953.5,3.39107451]
[1766687277906,1.01670543,2954.5,2953.5,3.39107451]
[1766687278108,0.16934,2954.6,2953.5,3.39107451]
[1766687278309,1.01670349,2954.5,2953.5,3.39107451]
[1766687278610,3.386,2954.4,2953.5,3.39107451]
[1766687283205,3.386,2954.3,2953.5,3.39107451]
[1766687283511,3.0274,2954.3,2953.5,3.39107451]
[1766687286416,2.2504,2954.3,2953.5,3.39107451]
[1766687286617,2.1508,2954.3,2953.5,3.39107451]
[1766687299020,0.16934,2954.6,2953.5,3.39107451]
[1766687299221,3.386,2954.3,2953.5,3.39107451]
[1766687310427,3.386,2954.3,2953.5,0.00507451]
[1766687310630,3.386,2954.3,2953.5,3.39107451]
[1766687330040,0.16934,2954.6,2953.5,3.39107451]
[1766687330241,4.4021183,2954.5,2953.5,3.39107451]
[1766687330538,3.386,2954.5,2953.5,3.39107451]
[1766687352766,3.386,2954.5,2953.5,0.00507451]
[1766687376294,0.16934,2954.6,2953.5,0.00507451]
[1766687376490,1.01651983,2954.5,2953.5,0.00507451]
[1766687376688,3.386,2954.7,2953.5,0.00507451]